[Event "*** Titled Tuesday Blitz"]
[Site "Chess.com"]
[Date "2021.03.09"]
[Round "3"]
[White "Frogo47"]
[Black "DrMamaliga"]
[Result "1-0"]
[WhiteElo "2542"]
[BlackElo "2344"]
[TimeControl "180+1"]
[EndTime "10:23:54 PST"]
[Termination "Frogo47 won by resignation"]

1. e4 {[%clk 0:03:00.9]} 1... e5 {[%clk 0:02:58.9]} 2. Nf3 {[%clk 0:02:54.5]}
2... Nc6 {[%clk 0:02:59.8]} 3. Bb5 {[%clk 0:02:54.4]} 3... a6 {[%clk 0:02:59.7]}
4. Ba4 {[%clk 0:02:54.9]} 4... d6 {[%clk 0:02:57.5]} 5. O-O {[%clk 0:02:54.3]}
5... f5 {[%clk 0:02:50.6]} 6. exf5 {[%clk 0:02:46.1]} 6... Bxf5 {[%clk
0:02:51.5]} 7. d4 {[%clk 0:02:45.9]} 7... b5 {[%clk 0:02:39.7]} 8. Bb3 {[%clk
0:02:43.1]} 8... Nf6 {[%clk 0:02:29.2]} 9. Re1 {[%clk 0:02:31.6]} 9... e4 {[%clk
0:02:25.1]} 10. d5 {[%clk 0:02:30.1]} 10... Ne5 {[%clk 0:02:15.9]} 11. Nxe5
{[%clk 0:02:27.9]} 11... dxe5 {[%clk 0:02:16.8]} 12. Nc3 {[%clk 0:02:27.1]}
12... a5 {[%clk 0:02:11.1]} 1-0

[Event "*** Titled Tuesday Blitz"]
[Site "Chess.com"]
[Date "2021.03.09"]
[Round "3"]
[White "szefru"]
[Black "Deepweb2020"]
[Result "0-1"]
[WhiteElo "2236"]
[BlackElo "2464"]
[TimeControl "180+1"]
[EndTime "10:24:27 PST"]
[Termination "Deepweb2020 won by resignation"]

1. d4 {[%clk 0:03:00.9]} 1... Nf6 {[%clk 0:02:59.9]} 2. c3 {[%clk 0:03:00.4]}
2... b6 {[%clk 0:02:57.9]} 3. Nf3 {[%clk 0:03:00.7]} 3... Bb7 {[%clk 0:02:58.3]}
4. Bf4 {[%clk 0:03:01.2]} 4... e6 {[%clk 0:02:57.9]} 5. e3 {[%clk 0:03:01.2]}
5... d5 {[%clk 0:02:58.2]} 6. Nbd2 {[%clk 0:03:01.4]} 6... Bd6 {[%clk
0:02:58.4]} 7. Bg3 {[%clk 0:03:01]} 7... c5 {[%clk 0:02:59]} 8. Bd3 {[%clk
0:03:00.9]} 8... Qc7 {[%clk 0:02:59]} 9. O-O {[%clk 0:02:59.9]} 9... Nbd7 {[%clk
0:02:59]} 10. Rc1 {[%clk 0:02:58.7]} 10... e5 {[%clk 0:02:56.3]} 11. dxe5 {[%clk
0:02:58.1]} 11... Nxe5 {[%clk 0:02:57.2]} 12. Nxe5 {[%clk 0:02:58.1]} 12... Bxe5
{[%clk 0:02:58.1]} 13. Bxe5 {[%clk 0:02:57.8]} 13... Qxe5 {[%clk 0:02:59]} 14.
Nf3 {[%clk 0:02:58.2]} 14... Qe7 {[%clk 0:02:59.2]} 15. Bb5+ {[%clk 0:02:57.5]}
15... Nd7 {[%clk 0:02:57]} 16. Qa4 {[%clk 0:02:52.3]} 16... a6 {[%clk
0:02:53.7]} 17. Bxd7+ {[%clk 0:02:51.7]} 17... Qxd7 {[%clk 0:02:54.6]} 18. Qxd7+
{[%clk 0:02:50.8]} 18... Kxd7 {[%clk 0:02:55]} 19. Rfd1 {[%clk 0:02:46]} 19...
Ke6 {[%clk 0:02:52.6]} 20. h3 {[%clk 0:02:41.1]} 20... Rad8 {[%clk 0:02:50]} 21.
Rd2 {[%clk 0:02:39.9]} 21... h6 {[%clk 0:02:47.4]} 22. Rcd1 {[%clk 0:02:39.4]}
22... Rd6 {[%clk 0:02:45.9]} 23. c4 {[%clk 0:02:32.7]} 23... Rhd8 {[%clk
0:02:45.5]} 24. cxd5+ {[%clk 0:02:32.4]} 24... Bxd5 {[%clk 0:02:40]} 25. b3
{[%clk 0:02:29.2]} 25... Bxf3 {[%clk 0:02:40.2]} 26. Rxd6+ {[%clk 0:02:28.8]}
26... Rxd6 {[%clk 0:02:41.1]} 27. Rxd6+ {[%clk 0:02:28.8]} 27... Kxd6 {[%clk
0:02:42]} 28. gxf3 {[%clk 0:02:29.4]} 28... c4 {[%clk 0:02:39.3]} 29. Kf1 {[%clk
0:02:26.9]} 29... cxb3 {[%clk 0:02:39]} 30. axb3 {[%clk 0:02:26.6]} 30... Kc5
{[%clk 0:02:36.9]} 31. Ke2 {[%clk 0:02:27.5]} 31... Kb4 {[%clk 0:02:36.9]} 0-1

[Event "*** Titled Tuesday Blitz"]
[Site "Chess.com"]
[Date "2021.03.09"]
[Round "3"]
[White "Arvids_Andrejevs"]
[Black "masrahi"]
[Result "1-0"]
[WhiteElo "2407"]
[BlackElo "2205"]
[TimeControl "180+1"]
[EndTime "10:24:47 PST"]
[Termination "Arvids_Andrejevs won by resignation"]

1. e4 {[%clk 0:03:00.9]} 1... e5 {[%clk 0:02:59.9]} 2. Nf3 {[%clk 0:03:00.8]}
2... Nc6 {[%clk 0:03:00.1]} 3. Nc3 {[%clk 0:03:01.3]} 3... Nf6 {[%clk 0:03:00]}
4. Bb5 {[%clk 0:03:01.9]} 4... Bc5 {[%clk 0:02:59.2]} 5. Nxe5 {[%clk 0:03:00.2]}
5... Nxe5 {[%clk 0:02:51]} 6. d4 {[%clk 0:03:00.1]} 6... Bb4 {[%clk 0:02:45.9]}
7. dxe5 {[%clk 0:02:59.2]} 7... Nxe4 {[%clk 0:02:44.3]} 8. Qd4 {[%clk
0:02:39.5]} 8... Nxc3 {[%clk 0:02:39.6]} 9. bxc3 {[%clk 0:02:39.6]} 9... Ba5
{[%clk 0:02:31.3]} 10. e6 {[%clk 0:02:32.9]} 10... Qe7 {[%clk 0:02:20.2]} 11.
Qxg7 {[%clk 0:02:26.1]} 11... Qxe6+ {[%clk 0:02:06.7]} 12. Kd1 {[%clk
0:02:11.3]} 12... Qd5+ {[%clk 0:01:57.9]} 13. Bd3 {[%clk 0:02:11.1]} 13... Qh5+
{[%clk 0:01:50.8]} 14. g4 {[%clk 0:02:04.7]} 1-0

[Event "*** Titled Tuesday Blitz"]
[Site "Chess.com"]
[Date "2021.03.09"]
[Round "3"]
[White "juancruzarias"]
[Black "KubaGepard"]
[Result "1-0"]
[WhiteElo "2586"]
[BlackElo "2393"]
[TimeControl "180+1"]
[EndTime "10:24:50 PST"]
[Termination "juancruzarias won by resignation"]

1. e4 {[%clk 0:03:00.9]} 1... c5 {[%clk 0:02:59.5]} 2. Nc3 {[%clk 0:03:00.9]}
2... a6 {[%clk 0:02:58.7]} 3. a4 {[%clk 0:03:00.4]} 3... d6 {[%clk 0:02:47.8]}
4. g3 {[%clk 0:03:00.5]} 4... g6 {[%clk 0:02:47.6]} 5. Bg2 {[%clk 0:03:00.9]}
5... Bg7 {[%clk 0:02:47.2]} 6. d3 {[%clk 0:03:01.3]} 6... Nc6 {[%clk 0:02:45.1]}
7. f4 {[%clk 0:03:01.2]} 7... e5 {[%clk 0:02:35.5]} 8. Nh3 {[%clk 0:02:59.1]}
8... Nge7 {[%clk 0:02:34]} 9. O-O {[%clk 0:02:58.6]} 9... O-O {[%clk 0:02:33.4]}
10. f5 {[%clk 0:02:58.4]} 10... gxf5 {[%clk 0:02:29.8]} 11. exf5 {[%clk
0:02:58]} 11... Bxf5 {[%clk 0:02:28.5]} 12. Rxf5 {[%clk 0:02:58]} 12... Nxf5
{[%clk 0:02:28.8]} 13. Be4 {[%clk 0:02:58.1]} 13... Nfe7 {[%clk 0:02:26.1]} 14.
Bxh7+ {[%clk 0:02:51.1]} 14... Kxh7 {[%clk 0:02:26]} 15. Qh5+ {[%clk 0:02:50.9]}
15... Kg8 {[%clk 0:02:19.3]} 16. Ng5 {[%clk 0:02:50.4]} 16... Re8 {[%clk
0:02:06.1]} 17. Qxf7+ {[%clk 0:02:48.5]} 17... Kh8 {[%clk 0:02:05.1]} 18. Qh5+
{[%clk 0:02:49.4]} 18... Kg8 {[%clk 0:02:04.8]} 19. Qh7+ {[%clk 0:02:49.5]}
19... Kf8 {[%clk 0:02:04.2]} 20. Ne6+ {[%clk 0:02:46]} 20... Kf7 {[%clk
0:01:42.9]} 21. Nxd8+ {[%clk 0:02:44.8]} 21... Raxd8 {[%clk 0:01:38.2]} 22. Bh6
{[%clk 0:02:45.2]} 22... Rg8 {[%clk 0:01:30.3]} 23. Rf1+ {[%clk 0:02:44.6]}
23... Ke6 {[%clk 0:01:30.5]} 24. Bxg7 {[%clk 0:02:43.3]} 1-0

[Event "*** Titled Tuesday Blitz"]
[Site "Chess.com"]
[Date "2021.03.09"]
[Round "3"]
[White "Duhless"]
[Black "Gahan-MG"]
[Result "1-0"]
[WhiteElo "3021"]
[BlackElo "2671"]
[TimeControl "180+1"]
[EndTime "10:25:09 PST"]
[Termination "Duhless won by resignation"]

1. d4 {[%clk 0:03:00.9]} 1... Nf6 {[%clk 0:02:58.8]} 2. Nf3 {[%clk 0:03:01.8]}
2... g6 {[%clk 0:02:59]} 3. g3 {[%clk 0:03:01]} 3... Bg7 {[%clk 0:02:59.3]} 4.
Bg2 {[%clk 0:03:01.9]} 4... O-O {[%clk 0:02:59.8]} 5. O-O {[%clk 0:03:02.8]}
5... d5 {[%clk 0:03:00.7]} 6. c3 {[%clk 0:03:01.2]} 6... c5 {[%clk 0:03:00.4]}
7. dxc5 {[%clk 0:03:00.3]} 7... Na6 {[%clk 0:02:59.8]} 8. b4 {[%clk 0:02:53.5]}
8... Ne4 {[%clk 0:02:59.3]} 9. a3 {[%clk 0:02:47.8]} 9... Nxc3 {[%clk
0:02:56.3]} 10. Nxc3 {[%clk 0:02:47.5]} 10... Bxc3 {[%clk 0:02:57.2]} 11. Bh6
{[%clk 0:02:47.6]} 11... Bxa1 {[%clk 0:02:45.9]} 12. Qxa1 {[%clk 0:02:46.3]}
12... f6 {[%clk 0:02:45.9]} 13. Bxf8 {[%clk 0:02:35.9]} 13... Qxf8 {[%clk
0:02:46.8]} 14. Rd1 {[%clk 0:02:35.7]} 14... e6 {[%clk 0:02:44.2]} 15. Nd4
{[%clk 0:02:27.4]} 15... Bd7 {[%clk 0:02:42.2]} 16. e4 {[%clk 0:02:26.7]} 16...
e5 {[%clk 0:02:38.4]} 17. exd5 {[%clk 0:02:24.2]} 17... exd4 {[%clk 0:02:37.8]}
18. Qxd4 {[%clk 0:02:24.7]} 18... Rd8 {[%clk 0:02:28]} 19. d6 {[%clk 0:02:19.3]}
19... Bc8 {[%clk 0:02:19.5]} 20. b5 {[%clk 0:02:18.6]} 20... Nb8 {[%clk
0:02:17]} 21. c6 {[%clk 0:02:16.8]} 21... bxc6 {[%clk 0:02:16.9]} 22. bxc6
{[%clk 0:02:17.7]} 22... Nxc6 {[%clk 0:02:00.5]} 23. Bxc6 {[%clk 0:02:16.7]}
23... Kg7 {[%clk 0:02:01.4]} 24. Qxa7+ {[%clk 0:02:13.5]} 24... Qf7 {[%clk
0:02:01.6]} 25. Qxf7+ {[%clk 0:02:06.8]} 25... Kxf7 {[%clk 0:02:02.5]} 26. d7
{[%clk 0:02:07.5]} 26... Ba6 {[%clk 0:02:02.6]} 27. Re1 {[%clk 0:02:07.9]} 1-0

[Event "*** Titled Tuesday Blitz"]
[Site "Chess.com"]
[Date "2021.03.09"]
[Round "3"]
[White "semchik73"]
[Black "eguindy"]
[Result "1-0"]
[WhiteElo "2291"]
[BlackElo "2452"]
[TimeControl "180+1"]
[EndTime "10:25:18 PST"]
[Termination "semchik73 won by resignation"]

1. Nf3 {[%clk 0:03:00.9]} 1... Nf6 {[%clk 0:02:58.5]} 2. c4 {[%clk 0:03:01.3]}
2... e6 {[%clk 0:02:57.8]} 3. Nc3 {[%clk 0:03:01.7]} 3... d5 {[%clk 0:02:56.2]}
4. d4 {[%clk 0:03:01.8]} 4... Be7 {[%clk 0:02:55.7]} 5. Bg5 {[%clk 0:03:01.3]}
5... Ne4 {[%clk 0:02:54.5]} 6. Bxe7 {[%clk 0:03:00.2]} 6... Qxe7 {[%clk
0:02:52.2]} 7. e3 {[%clk 0:02:59.7]} 7... c6 {[%clk 0:02:51.1]} 8. Bd3 {[%clk
0:02:58.6]} 8... f5 {[%clk 0:02:51.6]} 9. Ne5 {[%clk 0:02:58.6]} 9... Nd7 {[%clk
0:02:51]} 10. Qh5+ {[%clk 0:02:53.3]} 10... g6 {[%clk 0:02:40.1]} 11. Nxg6
{[%clk 0:02:52.7]} 11... Qf7 {[%clk 0:02:40.5]} 12. Nf4 {[%clk 0:02:52.7]} 12...
Qxh5 {[%clk 0:02:39.4]} 13. Nxh5 {[%clk 0:02:53.1]} 13... Nd6 {[%clk 0:02:37.5]}
14. cxd5 {[%clk 0:02:49.7]} 14... exd5 {[%clk 0:02:35.1]} 15. Ng3 {[%clk
0:02:46.7]} 15... O-O {[%clk 0:02:33.4]} 16. O-O {[%clk 0:02:45.5]} 16... Nf6
{[%clk 0:02:33.3]} 17. f3 {[%clk 0:02:44.7]} 17... Bd7 {[%clk 0:02:31.8]} 18. e4
{[%clk 0:02:39.5]} 18... fxe4 {[%clk 0:02:29.8]} 19. fxe4 {[%clk 0:02:39.5]}
19... dxe4 {[%clk 0:02:29.2]} 20. Ngxe4 {[%clk 0:02:39]} 20... Ndxe4 {[%clk
0:02:27.2]} 21. Nxe4 {[%clk 0:02:38.9]} 21... Nd5 {[%clk 0:02:25.7]} 22. Nc5
{[%clk 0:02:35.6]} 22... Rxf1+ {[%clk 0:02:12.9]} 23. Rxf1 {[%clk 0:02:34.5]}
23... Bc8 {[%clk 0:02:13.2]} 24. Bc4 {[%clk 0:02:20.1]} 24... b6 {[%clk
0:02:11.9]} 25. Ne4 {[%clk 0:02:18.4]} 25... Be6 {[%clk 0:02:07.7]} 26. Nf6+
{[%clk 0:02:18.2]} 26... Kg7 {[%clk 0:02:06.4]} 27. Nxd5 {[%clk 0:02:16]} 27...
cxd5 {[%clk 0:02:05.9]} 28. Bb3 {[%clk 0:02:12.8]} 28... Rc8 {[%clk 0:02:03.3]}
29. Re1 {[%clk 0:02:12.4]} 29... Kf6 {[%clk 0:02:02.5]} 30. Re5 {[%clk
0:02:11.9]} 30... Rc1+ {[%clk 0:01:59.1]} 31. Kf2 {[%clk 0:02:11.5]} 31... Rb1
{[%clk 0:01:59.1]} 32. Re2 {[%clk 0:02:09.9]} 32... Rd1 {[%clk 0:01:57.1]} 33.
Bxd1 {[%clk 0:02:08.5]} 1-0

[Event "*** Titled Tuesday Blitz"]
[Site "Chess.com"]
[Date "2021.03.09"]
[Round "3"]
[White "Artyom_ChessMate"]
[Black "SanQui14"]
[Result "1-0"]
[WhiteElo "2555"]
[BlackElo "2370"]
[TimeControl "180+1"]
[EndTime "10:25:36 PST"]
[Termination "Artyom_ChessMate won by resignation"]

1. e4 {[%clk 0:03:00.9]} 1... e5 {[%clk 0:02:58.6]} 2. Nf3 {[%clk 0:03:00.8]}
2... Nc6 {[%clk 0:02:58.7]} 3. Bb5 {[%clk 0:03:00.8]} 3... a6 {[%clk 0:02:58.9]}
4. Bxc6 {[%clk 0:03:01.1]} 4... dxc6 {[%clk 0:02:58.5]} 5. O-O {[%clk 0:03:02]}
5... Bd6 {[%clk 0:02:56.8]} 6. d4 {[%clk 0:03:00.8]} 6... exd4 {[%clk
0:02:52.9]} 7. Qxd4 {[%clk 0:03:01.7]} 7... Ne7 {[%clk 0:02:39.1]} 8. Qxg7
{[%clk 0:02:57.7]} 8... Rg8 {[%clk 0:02:38.5]} 9. Qxh7 {[%clk 0:02:57.9]} 9...
Qd7 {[%clk 0:02:00.7]} 10. Ng5 {[%clk 0:02:51.1]} 10... Qg4 {[%clk 0:01:59]} 11.
f3 {[%clk 0:02:35.2]} 11... Qd7 {[%clk 0:01:48.5]} 12. Qxf7+ {[%clk 0:02:33.3]}
12... Kd8 {[%clk 0:01:48.6]} 13. Nc3 {[%clk 0:02:31.6]} 13... Rh8 {[%clk
0:01:35.2]} 14. h3 {[%clk 0:02:17]} 14... b5 {[%clk 0:01:22]} 15. Be3 {[%clk
0:02:12.7]} 15... Bb7 {[%clk 0:01:19]} 16. Rad1 {[%clk 0:02:08.1]} 16... Qe8
{[%clk 0:01:02.1]} 17. e5 {[%clk 0:02:06.7]} 1-0

[Event "*** Titled Tuesday Blitz"]
[Site "Chess.com"]
[Date "2021.03.09"]
[Round "3"]
[White "Leonid_Starozhilov"]
[Black "Hikaru"]
[Result "1/2-1/2"]
[WhiteElo "2694"]
[BlackElo "3165"]
[TimeControl "180+1"]
[EndTime "10:26:19 PST"]
[Termination "Game drawn by repetition"]

1. e4 {[%clk 0:03:00.9]} 1... c6 {[%clk 0:02:58.8]} 2. d3 {[%clk 0:03:00.8]}
2... d5 {[%clk 0:02:58.8]} 3. Nd2 {[%clk 0:03:01.7]} 3... e5 {[%clk 0:02:58.9]}
4. Ngf3 {[%clk 0:03:01.3]} 4... Bd6 {[%clk 0:02:59]} 5. d4 {[%clk 0:03:01.1]}
5... exd4 {[%clk 0:02:56.7]} 6. exd5 {[%clk 0:03:01.1]} 6... c5 {[%clk 0:02:57]}
7. Bb5+ {[%clk 0:03:00.1]} 7... Bd7 {[%clk 0:02:56.8]} 8. Qe2+ {[%clk
0:02:58.6]} 8... Kf8 {[%clk 0:02:39.8]} 9. Ne4 {[%clk 0:02:58.8]} 9... Qa5+
{[%clk 0:02:13.2]} 10. Bd2 {[%clk 0:02:58.8]} 10... Qxb5 {[%clk 0:02:13.1]} 11.
Qxb5 {[%clk 0:02:59.5]} 11... Bxb5 {[%clk 0:02:14]} 12. Nxd6 {[%clk 0:03:00.2]}
12... Ba6 {[%clk 0:02:14.7]} 13. b4 {[%clk 0:02:46.9]} 13... Ke7 {[%clk
0:01:44.1]} 14. bxc5 {[%clk 0:02:45]} 14... Nf6 {[%clk 0:01:44.2]} 15. Nxd4
{[%clk 0:02:43.8]} 15... Nxd5 {[%clk 0:01:43.2]} 16. O-O-O {[%clk 0:02:43.2]}
16... Nc6 {[%clk 0:01:39.2]} 17. Nxc6+ {[%clk 0:02:29.8]} 17... bxc6 {[%clk
0:01:40.1]} 18. Rhe1+ {[%clk 0:02:30.3]} 18... Kf8 {[%clk 0:01:40.5]} 19. c4
{[%clk 0:02:25.8]} 19... Nc7 {[%clk 0:01:40.4]} 20. Re3 {[%clk 0:02:03.6]} 20...
Ne6 {[%clk 0:01:37.8]} 21. Ra3 {[%clk 0:02:03.8]} 21... Bc8 {[%clk 0:01:37.7]}
22. Be3 {[%clk 0:02:00.9]} 22... g6 {[%clk 0:01:34.9]} 23. Nxc8 {[%clk
0:01:39.6]} 23... Rxc8 {[%clk 0:01:34.7]} 24. Rxa7 {[%clk 0:01:40.4]} 24... Kg7
{[%clk 0:01:34.6]} 25. Rdd7 {[%clk 0:01:41.1]} 25... Rhf8 {[%clk 0:01:34.6]} 26.
a4 {[%clk 0:01:37.7]} 26... Rb8 {[%clk 0:01:34.9]} 27. Kc2 {[%clk 0:01:20.7]}
27... Rb4 {[%clk 0:01:34.5]} 28. Kc3 {[%clk 0:01:21.3]} 28... Rb1 {[%clk
0:01:34.9]} 29. Kc2 {[%clk 0:01:17.2]} 29... Rb4 {[%clk 0:01:34.9]} 30. Kc3
{[%clk 0:01:17.7]} 30... Rb1 {[%clk 0:01:35.3]} 31. Kc2 {[%clk 0:01:18.3]} 31...
Rb4 {[%clk 0:01:35.4]} 1/2-1/2

[Event "*** Titled Tuesday Blitz"]
[Site "Chess.com"]
[Date "2021.03.09"]
[Round "3"]
[White "GMBenjaminFinegold"]
[Black "JimmmyZhang"]
[Result "1-0"]
[WhiteElo "2613"]
[BlackElo "2418"]
[TimeControl "180+1"]
[EndTime "10:26:19 PST"]
[Termination "GMBenjaminFinegold won by resignation"]

1. d4 {[%clk 0:03:00.9]} 1... Nf6 {[%clk 0:02:57.9]} 2. c4 {[%clk 0:03:00.8]}
2... e6 {[%clk 0:02:58.3]} 3. Nc3 {[%clk 0:03:00.4]} 3... Bb4 {[%clk 0:02:57.6]}
4. Qc2 {[%clk 0:03:00.5]} 4... d5 {[%clk 0:02:57]} 5. cxd5 {[%clk 0:02:59.5]}
5... exd5 {[%clk 0:02:56.8]} 6. Bg5 {[%clk 0:02:59.5]} 6... c6 {[%clk
0:02:56.4]} 7. e3 {[%clk 0:02:59]} 7... h6 {[%clk 0:02:56.4]} 8. Bh4 {[%clk
0:02:58.9]} 8... Be6 {[%clk 0:02:53.8]} 9. Bd3 {[%clk 0:02:57.4]} 9... Nbd7
{[%clk 0:02:53.8]} 10. Ne2 {[%clk 0:02:57.5]} 10... O-O {[%clk 0:02:53.6]} 11.
O-O {[%clk 0:02:57]} 11... Rc8 {[%clk 0:02:53.6]} 12. a3 {[%clk 0:02:56.2]}
12... Bd6 {[%clk 0:02:53.1]} 13. Bg3 {[%clk 0:02:51.4]} 13... Bxg3 {[%clk
0:02:50.7]} 14. Nxg3 {[%clk 0:02:50.9]} 14... c5 {[%clk 0:02:50.9]} 15. dxc5
{[%clk 0:02:49.6]} 15... Nxc5 {[%clk 0:02:50.1]} 16. Rad1 {[%clk 0:02:49.3]}
16... d4 {[%clk 0:02:41.7]} 17. exd4 {[%clk 0:02:14.7]} 17... Bb3 {[%clk
0:02:40.4]} 18. Qe2 {[%clk 0:02:07.2]} 18... Bxd1 {[%clk 0:02:35.2]} 19. Rxd1
{[%clk 0:02:08.1]} 19... Nxd3 {[%clk 0:02:33.7]} 20. Qxd3 {[%clk 0:02:07.6]}
20... Qb6 {[%clk 0:02:28.8]} 21. Nf5 {[%clk 0:02:00.9]} 21... Rfe8 {[%clk
0:02:02.8]} 22. Qg3 {[%clk 0:01:56.9]} 22... Nh5 {[%clk 0:02:00.9]} 23. Qg4
{[%clk 0:01:53.2]} 23... Qg6 {[%clk 0:01:53.5]} 24. Qxg6 {[%clk 0:01:49.7]}
24... fxg6 {[%clk 0:01:51.3]} 25. Nd6 {[%clk 0:01:49.4]} 25... Nf4 {[%clk
0:01:49.1]} 26. Kf1 {[%clk 0:01:43.1]} 26... Kf8 {[%clk 0:01:42.5]} 27. g3
{[%clk 0:01:41.1]} 27... Nh3 {[%clk 0:01:42]} 28. Nxc8 {[%clk 0:01:37.1]} 28...
Rxc8 {[%clk 0:01:41.9]} 29. f4 {[%clk 0:01:35.1]} 29... g5 {[%clk 0:01:41.6]}
30. Kg2 {[%clk 0:01:33.6]} 30... g4 {[%clk 0:01:42.2]} 31. d5 {[%clk 0:01:33.2]}
31... g5 {[%clk 0:01:42.6]} 32. f5 {[%clk 0:01:28.9]} 32... Ke7 {[%clk
0:01:41.4]} 33. d6+ {[%clk 0:01:27.9]} 33... Kd7 {[%clk 0:01:40.8]} 34. f6
{[%clk 0:01:25.2]} 34... Rf8 {[%clk 0:01:40.2]} 35. Ne4 {[%clk 0:01:22.8]} 1-0

[Event "*** Titled Tuesday Blitz"]
[Site "Chess.com"]
[Date "2021.03.09"]
[Round "3"]
[White "Vugar_Manafov"]
[Black "ljuks68"]
[Result "1-0"]
[WhiteElo "2672"]
[BlackElo "2437"]
[TimeControl "180+1"]
[EndTime "10:26:21 PST"]
[Termination "Vugar_Manafov won by resignation"]

1. d4 {[%clk 0:03:00.7]} 1... d5 {[%clk 0:02:59.9]} 2. c4 {[%clk 0:02:57.3]}
2... c6 {[%clk 0:03:00]} 3. Nc3 {[%clk 0:02:55.1]} 3... Nf6 {[%clk 0:03:00.3]}
4. e3 {[%clk 0:02:54.2]} 4... e6 {[%clk 0:03:00.1]} 5. Nf3 {[%clk 0:02:54.1]}
5... Nbd7 {[%clk 0:03:00.2]} 6. Qc2 {[%clk 0:02:52.3]} 6... Bd6 {[%clk
0:02:59.8]} 7. Be2 {[%clk 0:02:51.4]} 7... dxc4 {[%clk 0:02:54.8]} 8. Bxc4
{[%clk 0:02:52.3]} 8... b5 {[%clk 0:02:54.9]} 9. Be2 {[%clk 0:02:51.8]} 9... Bb7
{[%clk 0:02:54.1]} 10. O-O {[%clk 0:02:51.1]} 10... O-O {[%clk 0:02:51]} 11. e4
{[%clk 0:02:49.7]} 11... e5 {[%clk 0:02:50.4]} 12. dxe5 {[%clk 0:02:48.7]} 12...
Nxe5 {[%clk 0:02:50.5]} 13. Nh4 {[%clk 0:02:48.2]} 13... b4 {[%clk 0:02:36.5]}
14. Rd1 {[%clk 0:02:35.1]} 14... bxc3 {[%clk 0:02:22.9]} 15. Nf5 {[%clk
0:02:34]} 15... Ne8 {[%clk 0:02:22.7]} 16. Qxc3 {[%clk 0:02:33]} 16... Qf6
{[%clk 0:02:10.8]} 17. f4 {[%clk 0:02:29.3]} 17... Ng6 {[%clk 0:02:02.7]} 18.
Nxd6 {[%clk 0:02:04.2]} 18... Nxd6 {[%clk 0:01:47]} 19. Qxf6 {[%clk 0:02:02.5]}
19... gxf6 {[%clk 0:01:46.4]} 20. Rxd6 {[%clk 0:02:02.2]} 20... Rad8 {[%clk
0:01:45.2]} 21. Rxd8 {[%clk 0:02:01.4]} 21... Rxd8 {[%clk 0:01:44.7]} 22. Be3
{[%clk 0:02:01.1]} 22... c5 {[%clk 0:01:39.4]} 23. Bf3 {[%clk 0:01:52.5]} 23...
f5 {[%clk 0:01:31.6]} 24. exf5 {[%clk 0:01:41.8]} 24... Bxf3 {[%clk 0:01:29.7]}
25. fxg6 {[%clk 0:01:37.5]} 25... Be4 {[%clk 0:01:29.2]} 26. gxf7+ {[%clk
0:01:35.8]} 26... Kxf7 {[%clk 0:01:29.2]} 27. Rc1 {[%clk 0:01:32.5]} 27... Rd3
{[%clk 0:01:26]} 28. Kf2 {[%clk 0:01:31.7]} 1-0

[Event "*** Titled Tuesday Blitz"]
[Site "Chess.com"]
[Date "2021.03.09"]
[Round "3"]
[White "KarateBaby"]
[Black "zacachess"]
[Result "0-1"]
[WhiteElo "2218"]
[BlackElo "2500"]
[TimeControl "180+1"]
[EndTime "10:26:35 PST"]
[Termination "zacachess won by resignation"]

1. Nf3 {[%clk 0:02:26.4]} 1... Nf6 {[%clk 0:02:55.4]} 2. c4 {[%clk 0:02:25.6]}
2... g6 {[%clk 0:02:54.6]} 3. Nc3 {[%clk 0:02:13.1]} 3... Bg7 {[%clk 0:02:55.1]}
4. e4 {[%clk 0:02:13.4]} 4... d6 {[%clk 0:02:55.1]} 5. d4 {[%clk 0:02:13.2]}
5... O-O {[%clk 0:02:55.6]} 6. h3 {[%clk 0:02:09.3]} 6... e5 {[%clk 0:02:53]} 7.
dxe5 {[%clk 0:02:10.2]} 7... dxe5 {[%clk 0:02:53.8]} 8. Qxd8 {[%clk 0:02:11.1]}
8... Rxd8 {[%clk 0:02:54]} 9. Bg5 {[%clk 0:02:12]} 9... Re8 {[%clk 0:02:50.6]}
10. Nd5 {[%clk 0:01:51.6]} 10... Nxd5 {[%clk 0:02:50.7]} 11. cxd5 {[%clk
0:01:52.5]} 11... c6 {[%clk 0:02:51.2]} 12. Bc4 {[%clk 0:01:39.4]} 12... cxd5
{[%clk 0:02:46.5]} 13. Bxd5 {[%clk 0:01:25.4]} 13... Nd7 {[%clk 0:02:47]} 14.
Nd2 {[%clk 0:00:46.6]} 14... Nb6 {[%clk 0:02:41.7]} 15. Bb3 {[%clk 0:00:43.6]}
15... Be6 {[%clk 0:02:39.3]} 16. O-O {[%clk 0:00:39.4]} 16... Rac8 {[%clk
0:02:23.1]} 17. Rac1 {[%clk 0:00:37]} 17... Bxb3 {[%clk 0:02:16.5]} 18. Nxb3
{[%clk 0:00:37.9]} 18... Nc4 {[%clk 0:02:12.9]} 19. Rc2 {[%clk 0:00:28.2]} 19...
Nd6 {[%clk 0:02:06]} 20. Rd2 {[%clk 0:00:09.6]} 20... Nxe4 {[%clk 0:02:05.1]}
0-1